bitfinex/quotes_ETHUSD_20260202
["timestamp","ask_amount","ask_price","bid_price","bid_amount"]
[1769991317136,0.0011,2294.9,2293.6,0.01342642]
[1769991317252,0.0011,2294.9,2293.6,0.5624891]
[1769991317657,18.58642357,2294.8,2293.4,1.09004975]
[1769991317856,18.58642357,2294.8,2293.1,0.54513207]
[1769991317857,20.9936178,2294.7,2293.2,1.09015202]
[1769991318085,24.0884518,2294.6,2293.2,1.09015202]
[1769991318245,13.1816868,2294.6,2292.7,0.01442642]
[1769991318449,13.1816868,2294.3,2292.9,1.09031306]
[1769991318693,3.48144132,2294.2,2293.4,1.09007587]
[1769991318849,13.2840868,2294.8,2293.4,1.09007587]
[1769991318850,0.914,2294.1,2293.4,1.09007587]
[1769991319185,0.914,2294.6,2293.3,0.01342642]
[1769991319383,0.914,2294.6,2293.5,0.01342642]
[1769991319685,0.914,2294.6,2293.3,0.01342642]
[1769991320062,0.914,2294.6,2293.2,1.09017966]
[1769991320447,4.591,2294.5,2293.7,0.01342642]
[1769991320651,1.08946703,2294.7,2293.7,0.01342642]
[1769991320852,1.08946703,2294.7,2293.6,0.01342642]
[1769991321051,1.08946703,2294.7,2293.6,1.08998953]
[1769991321254,14.27115383,2294.7,2293.4,1.09006229]
[1769991321549,20.54072577,2294.6,2293.3,1.09011947]
[1769991321771,1.9543022,2294.6,2293.5,1.09000541]
[1769991321953,1.08946703,2294.7,2293.5,1.09000541]
[1769991322154,1.08946703,2294.7,2293.5,1.10343183]
[1769991322353,1.08946703,2294.7,2293.6,0.01342642]
[1769991322655,1.08946703,2294.7,2293.5,1.09000541]
[1769991322990,5.68079947,2294.0,2292.7,0.001]
[1769991323151,0.914,2293.9,2292.7,0.001]
[1769991323357,0.914,2294.1,2293.0,0.01342642]
[1769991323581,0.914,2294.1,2293.3,0.01342642]
[1769991323882,1.7256505,2294.6,2293.3,0.01342642]
[1769991324103,0.69977085,2294.5,2293.4,0.01342642]
[1769991324401,0.69977085,2294.5,2293.5,0.01342642]
[1769991324566,0.69977085,2294.5,2293.4,0.01342642]
[1769991324969,2.00346973,2294.7,2293.6,0.01342642]
[1769991325177,4.35873054,2294.9,2293.6,0.01342642]
[1769991325178,1.09049624,2294.9,2293.9,0.01342642]
[1769991325375,1.09049624,2294.9,2293.6,1.089959]
[1769991325757,14.27218304,2294.9,2293.6,1.08998142]
[1769991325957,1.09049624,2294.9,2293.7,0.01342642]
[1769991326271,0.0011,2294.9,2294.0,0.01342642]
[1769991326471,1.09047996,2294.9,2294.0,0.01342642]
[1769991326793,4.591,2293.5,2292.7,0.001]
[1769991327082,13.1816868,2293.6,2291.6,0.01342642]
[1769991327083,4.16115338,2293.4,2291.6,0.01342642]
[1769991327389,2.86736786,2293.4,2292.0,0.01342642]
[1769991327587,1.09009918,2293.4,2291.7,0.01342642]
[1769991328084,0.914,2293.3,2291.9,0.01342642]
[1769991328388,0.914,2293.3,2291.7,0.01342642]
[1769991328693,0.01342642,2292.9,2291.5,1.09098843]
[1769991328859,0.01342642,2292.8,2291.6,0.54549422]
[1769991329187,4.60442642,2293.0,2291.3,0.01342642]
[1769991329188,1.09027474,2293.0,2291.3,0.01342642]
[1769991329369,0.914,2292.9,2291.8,0.01342642]
[1769991329570,17.54177857,2293.6,2292.2,0.01342642]
[1769991329764,0.914,2293.5,2292.2,0.01342642]
[1769991329957,0.914,2293.4,2292.5,0.01342642]
[1769991330157,0.914,2293.4,2292.7,0.01342642]
[1769991330366,0.914,2293.4,2292.5,0.01342642]
[1769991330585,0.914,2293.4,2291.8,0.01342642]
[1769991330789,0.914,2293.4,2291.5,0.01442642]
[1769991331321,1.08975197,2294.1,2292.4,0.01342642]
[1769991331605,2.6108511,2294.1,2292.7,0.01342642]
[1769991331904,14.0956868,2294.1,2292.2,0.01342642]
[1769991332083,13.1816868,2293.8,2291.7,17.4567307]
[1769991332287,0.914,2294.1,2292.2,0.01342642]
[1769991332599,0.914,2294.0,2292.3,0.01342642]
[1769991332760,14.0956868,2294.0,2292.2,0.01342642]
[1769991332960,14.0956868,2294.0,2291.7,17.4567307]
[1769991332961,13.19511322,2293.8,2291.8,1.09084562]
[1769991333181,1.09017966,2293.2,2291.7,0.001]
[1769991333391,0.914,2293.1,2291.7,0.001]
[1769991333974,1.09014974,2293.3,2291.8,0.01342642]
[1769991334206,2.00414974,2293.3,2291.9,0.01342642]
[1769991334407,0.6364555,2293.2,2291.9,0.01342642]
[1769991334710,1.08994201,2293.7,2292.0,0.01342642]
[1769991334862,0.914,2293.4,2292.0,0.01342642]
[1769991335061,1.09013212,2293.3,2292.1,1.09070284]
[1769991335362,0.914,2293.4,2292.1,1.09070284]
[1769991335687,2.00410377,2293.4,2292.2,0.54535142]
[1769991336091,1.08989449,2293.8,2292.3,0.01342642]
[1769991336271,0.914,2293.7,2292.4,0.01342642]
[1769991336588,0.914,2293.7,2292.2,0.54535142]
[1769991336777,0.914,2293.7,2292.3,0.01342642]
[1769991337092,17.54068344,2294.2,2292.3,0.01342642]
[1769991337093,0.0011,2294.5,2293.0,1.09027474]
[1769991337295,0.0011,2294.5,2293.4,0.01342642]
[1769991337497,0.0011,2294.5,2293.1,0.54648002]
[1769991337665,0.0011,2294.5,2293.3,0.01342642]
[1769991337860,0.0011,2294.7,2293.8,0.01342642]
[1769991338363,0.0011,2294.7,2293.9,0.01342642]
[1769991338560,0.0011,2294.7,2293.7,0.01342642]
[1769991338985,0.0011,2294.7,2292.4,2.21838162]
[1769991339187,0.0011,2294.7,2293.7,1.08994201]
[1769991339486,0.0011,2295.1,2294.0,0.01342642]
[1769991339689,12.54572754,2296.1,2294.0,0.01342642]
[1769991339690,0.914,2295.3,2294.4,0.01342642]
[1769991339888,0.914,2295.3,2294.5,0.01342642]
[1769991340095,4.35541367,2296.0,2294.7,0.01342642]
[1769991340096,2.00286868,2296.0,2294.7,0.01342642]
[1769991340293,4.35643217,2296.1,2295.1,0.01342642]
[1769991340294,0.0011,2296.1,2295.1,0.01342642]
[1769991340505,0.0011,2296.3,2295.5,0.01342642]
[1769991340787,0.914,2296.8,2295.2,0.01342642]
[1769991341371,1.45470229,2296.8,2295.3,1.10260866]
[1769991341576,1.08837614,2297.0,2295.4,0.01342642]
[1769991341771,0.914,2296.9,2295.4,0.01342642]
[1769991341982,13.98785939,2296.8,2295.3,1.08918224]
[1769991342391,1.08837614,2297.0,2295.4,0.01342642]
[1769991342586,0.914,2296.9,2295.7,0.01342642]
[1769991342775,0.914,2296.9,2295.3,1.08918224]
[1769991342977,1.08837614,2297.0,2295.6,0.01342642]
[1769991343177,0.0011,2297.3,2296.3,0.01342642]
[1769991343375,0.0011,2297.3,2296.4,1.08866051]
[1769991343773,15.07564892,2298.3,2296.5,0.01342642]
[1769991343975,0.914,2298.2,2296.6,0.01342642]
[1769991344171,1.59896489,2298.1,2296.8,0.01342642]
[1769991344401,1.56432969,2298.1,2296.6,0.01342642]
[1769991344614,26.51906051,2297.9,2296.4,1.08866051]
[1769991344769,26.51906051,2297.9,2295.8,0.01342642]
[1769991344770,17.24208811,2297.8,2295.8,0.01342642]
[1769991344974,17.24208811,2297.8,2295.3,13.39473971]
[1769991344975,14.00128581,2297.3,2295.4,4.35651582]
[1769991345197,0.0011,2296.3,2295.2,0.01342642]
[1769991345397,0.0011,2296.3,2295.5,0.01342642]
[1769991345570,0.913,2297.0,2296.1,0.01342642]
[1769991345774,0.913,2297.5,2296.2,0.01342642]
[1769991346205,14.4681441,2297.5,2296.1,0.01342642]
[1769991346410,12.53120112,2296.9,2295.3,4.35662658]
[1769991346574,12.53120112,2296.9,2295.2,1.08918224]
[1769991346575,13.5551441,2296.8,2295.2,1.08921792]
[1769991346772,13.5551441,2296.8,2295.4,0.01342642]
[1769991346994,13.5551441,2296.8,2295.2,1.10264434]
[1769991346995,0.913,2296.7,2295.2,1.10264434]
[1769991347197,13.5551441,2296.3,2294.5,4.35823121]
[1769991347399,13.5551441,2296.1,2294.5,1.08956199]
[1769991347588,13.5551441,2295.8,2294.4,1.08957682]
[1769991348091,4.92708569,2296.4,2294.9,0.01342642]
[1769991348092,1.08868316,2296.4,2294.9,0.01342642]
[1769991348292,1.08863111,2296.5,2295.3,0.01342642]
[1769991348488,0.913,2296.8,2295.3,0.01342642]
[1769991348489,1.0885183,2296.7,2295.5,0.01342642]
[1769991348898,13.5551441,2296.5,2294.5,0.01342642]
[1769991349076,13.5551441,2296.3,2294.5,0.01342642]
[1769991349276,14.64389943,2296.2,2294.6,1.08951451]
[1769991349476,13.56857052,2296.0,2294.5,1.08955873]
[1769991349725,13.5551441,2295.8,2294.5,1.08955873]
[1769991349897,0.913,2295.8,2294.6,0.01342642]
[1769991350216,1.89989208,2296.1,2294.9,0.01342642]
[1769991350406,1.0885657,2296.6,2295.3,0.01342642]
[1769991350601,0.54428285,2296.5,2295.3,0.01342642]
[1769991350814,2.0015657,2296.6,2295.4,0.01342642]
[1769991350815,0.913,2296.6,2295.4,0.01342642]
[1769991351117,0.913,2296.6,2295.3,0.01342642]
[1769991351281,0.913,2296.6,2295.4,0.01342642]
[1769991351488,1.08832876,2297.2,2295.7,0.01342642]
[1769991351728,18.01066964,2297.3,2295.7,0.01342642]
[1769991351729,1.5556264,2297.4,2296.0,0.01342642]
[1769991351881,1.31527393,2298.2,2296.7,0.01342642]
[1769991352209,0.913,2298.1,2296.7,0.01342642]
[1769991352712,2.00081515,2298.2,2296.7,0.01342642]
[1769991353010,1.99071731,2298.1,2296.7,0.01342642]
[1769991353312,0.913,2298.1,2297.0,0.01342642]
[1769991353483,2.00086961,2298.1,2297.1,1.08832876]
[1769991353685,2.00085546,2298.1,2297.1,1.08832876]
[1769991353884,2.00087115,2298.1,2297.2,0.54550702]
[1769991354430,1.08757123,2298.7,2297.3,0.01342642]
[1769991354612,0.913,2298.5,2297.3,0.01342642]
[1769991354787,0.913,2298.5,2297.2,0.55893344]
[1769991355114,0.913,2298.5,2297.2,0.54550702]
[1769991355615,1.08771319,2298.4,2297.2,0.54550702]
[1769991355833,1.08771319,2298.4,2296.6,4.36752292]
[1769991355834,14.1903007,2298.3,2296.9,1.08838938]
[1769991355987,14.1903007,2298.3,2297.2,1.08827929]
[1769991356188,1.08769427,2298.5,2297.2,1.08827929]
[1769991356486,0.913,2298.4,2297.2,1.08827929]
[1769991357000,0.0011,2298.3,2297.2,1.08827929]
[1769991357513,13.5562441,2298.3,2297.1,1.08832233]
[1769991357815,1.08780784,2298.2,2296.7,1.0885183]
[1769991358025,1.08780784,2298.2,2296.8,0.54561313]
[1769991358026,13.5551441,2298.0,2296.8,0.54561313]
[1769991358254,13.56857052,2298.0,2295.9,0.92642642]
[1769991358547,13.5551441,2297.5,2295.2,13.82495339]
[1769991358712,13.5551441,2297.5,2295.3,0.001]
[1769991358713,12.53120112,2297.1,2295.3,0.001]
[1769991358887,13.56857052,2297.0,2295.3,0.001]
[1769991359337,13.5551441,2297.3,2295.5,4.36960495]
[1769991359624,13.5551441,2297.3,2295.6,4.36957425]
[1769991359625,1.08832876,2297.1,2295.6,4.36957425]
[1769991359834,1.08832876,2297.1,2295.3,0.001]
[1769991359835,13.56857052,2296.9,2295.3,0.001]
[1769991360010,1.35819969,2296.8,2295.7,1.08896135]
[1769991360210,1.35819969,2296.8,2295.7,1.08896535]
[1769991360429,14.91334379,2296.8,2295.6,1.08900634]
[1769991360755,14.91334379,2296.8,2295.9,1.08888406]
[1769991360901,0.913,2296.7,2295.7,1.08895872]
[1769991361241,13.5551441,2296.3,2295.3,0.001]
[1769991361741,13.5551441,2296.3,2293.8,0.55974007]
[1769991361742,13.5551441,2295.6,2293.8,0.55974007]
[1769991361911,26.08634522,2295.4,2293.5,4.3735522]
[1769991362102,0.913,2295.3,2294.3,1.0896257]
[1769991362310,0.913,2295.2,2294.3,0.54494337]
[1769991362509,0.913,2295.2,2293.8,4.37293462]
[1769991362735,0.913,2295.2,2293.6,0.01342642]
[1769991362736,0.913,2295.2,2294.4,1.08960225]
[1769991363242,0.913,2295.2,2294.3,1.0896261]
[1769991363461,0.913,2295.2,2294.4,1.08959857]
[1769991363631,0.913,2295.2,2294.3,4.35843793]
[1769991363963,0.913,2295.9,2294.8,0.01342642]
[1769991364549,0.913,2295.9,2294.9,0.01342642]
[1769991364767,13.5551441,2297.0,2295.6,0.01342642]
[1769991364916,13.5551441,2296.8,2294.4,0.55957855]
[1769991365116,13.5551441,2296.5,2295.1,0.01342642]
[1769991365444,4.35350457,2297.1,2295.1,0.01342642]
[1769991365445,15.55647432,2297.1,2295.9,0.01342642]
[1769991365665,0.913,2297.1,2296.0,1.10227659]
[1769991365827,13.5551441,2297.7,2296.3,0.01342642]
[1769991366151,0.913,2297.6,2296.5,0.01342642]
[1769991366323,0.913,2297.6,2295.8,0.01342642]
[1769991366324,0.1024,2297.3,2295.8,0.01342642]
[1769991366525,13.5551441,2297.2,2295.3,0.01342642]
[1769991366741,1.37599441,2297.3,2295.9,1.10232074]
[1769991366927,15.55619752,2297.7,2296.4,0.01342642]
[1769991367342,15.55619752,2297.7,2295.9,1.08889432]
[1769991367663,14.10472051,2297.4,2295.7,1.08899246]
[1769991368152,14.10472051,2297.4,2296.0,0.01342642]
[1769991368320,15.01772051,2297.4,2296.0,0.01342642]
[1769991368521,17.39004188,2297.4,2296.0,0.01342642]
[1769991368952,0.913,2297.5,2296.3,0.01342642]
[1769991369151,0.913,2297.5,2296.2,0.01342642]
[1769991369333,0.913,2297.5,2296.1,0.01342642]
[1769991369530,1.08780784,2298.2,2296.5,0.01342642]
[1769991369733,0.913,2298.1,2296.9,0.01342642]
[1769991369943,0.913,2298.1,2297.2,0.01342642]
[1769991370144,0.0011,2298.3,2297.2,0.01342642]
[1769991370441,0.0011,2298.3,2297.3,0.01342642]
[1769991370651,13.01653387,2299.6,2298.0,0.01342642]
[1769991370860,13.01653387,2299.6,2298.4,0.01342642]
[1769991371045,13.01653387,2299.6,2298.2,0.01342642]
[1769991371046,15.51405126,2299.6,2298.2,0.01342642]
[1769991371231,15.51405126,2299.6,2298.3,0.01342642]
[1769991371232,0.0011,2298.6,2298.3,0.01342642]
[1769991371437,0.913,2299.4,2298.3,0.01342642]
[1769991371625,2.32336432,2299.6,2298.5,0.01342642]
[1769991371822,2.00010045,2299.7,2298.6,1.08761855]
[1769991372026,2.00010045,2299.7,2298.5,1.08764895]
[1769991372452,2.00010045,2299.7,2298.5,1.10107537]
[1769991372453,1.08710667,2299.7,2298.5,1.10107537]
[1769991372669,0.913,2299.8,2298.7,0.01342642]
[1769991372829,0.913,2300.1,2299.0,0.01342642]
[1769991373030,2.84938738,2300.1,2298.7,0.01342642]
[1769991373325,12.53120112,2300.0,2297.3,4.36621425]
[1769991373529,13.01653387,2299.9,2298.5,1.08766032]
[1769991373731,13.01653387,2299.7,2298.1,1.08785518]
[1769991373927,13.01653387,2299.4,2297.5,0.01342642]
[1769991374160,3.4677735,2299.3,2298.0,1.08789483]
[1769991374336,0.913,2299.6,2298.3,0.01342642]
[1769991374659,2.00002942,2299.9,2298.7,0.01342642]
[1769991375057,0.913,2299.9,2298.9,0.01342642]
[1769991375364,0.913,2299.9,2298.5,0.01342642]
[1769991375365,13.92953387,2299.9,2297.8,4.36503651]
[1769991375656,13.94296029,2299.9,2297.8,0.01342642]
[1769991375844,13.01653387,2299.4,2297.9,1.08791443]
[1769991376154,13.92853387,2299.3,2298.0,1.08788924]
[1769991376352,13.01653387,2299.3,2298.0,1.10131566]
[1769991376559,0.912,2299.2,2298.0,1.10131566]
[1769991376862,0.912,2299.2,2297.8,0.01342642]
[1769991377027,13.01653387,2299.0,2297.3,1.08820002]
[1769991377229,13.01653387,2298.5,2297.3,1.08819329]
[1769991377458,0.912,2298.5,2297.4,0.01342642]
[1769991377644,0.912,2298.5,2297.6,1.08808974]
[1769991377828,1.08747661,2298.9,2297.9,1.08790599]
[1769991378030,13.01653387,2299.0,2297.9,1.08790599]
[1769991378258,1.08733472,2299.2,2298.1,0.01342642]
[1769991378588,13.01653387,2299.4,2297.8,1.08799404]
[1769991378862,15.01563218,2299.7,2298.4,0.01342642]
[1769991379065,15.29137767,2299.7,2298.4,0.01342642]
[1769991379278,15.29137767,2299.7,2298.6,0.01342642]
[1769991379433,15.29137767,2299.7,2298.7,0.01342642]
[1769991379634,0.912,2299.6,2299.0,0.01342642]
[1769991379974,1.08719286,2299.5,2299.0,0.01342642]
[1769991380142,4.3480335,2299.9,2299.0,0.01342642]
[1769991380143,1.08686201,2300.2,2299.2,0.01342642]
[1769991380346,1.08686201,2300.2,2299.6,0.01342642]
[1769991380668,0.912,2300.4,2299.8,0.01342642]
[1769991380833,1.08643692,2301.1,2300.2,0.01342642]
[1769991381032,0.57411033,2301.0,2300.5,0.01342642]
[1769991381232,0.30896771,2301.2,2300.7,0.01342642]
[1769991381432,0.22716677,2302.4,2301.2,0.01342642]
[1769991381665,1.08583776,2302.4,2301.5,0.01342642]
[1769991381884,25.54773499,2302.3,2301.3,0.0292]
[1769991382171,25.54773499,2302.3,2301.1,0.01342642]
[1769991382172,15.67989115,2302.2,2299.9,0.01342642]
[1769991382361,15.67989115,2302.2,2301.1,0.01342642]
[1769991382536,0.912,2302.1,2301.2,0.01342642]
[1769991382726,0.912,2302.1,2301.0,0.01342642]
[1769991382928,13.92853387,2302.1,2301.0,0.01342642]
[1769991383330,13.01653387,2302.1,2301.0,0.01342642]
[1769991383565,0.912,2302.0,2301.0,0.01342642]
[1769991383872,14.10259321,2301.9,2300.7,0.01342642]
[1769991384169,14.10259321,2301.9,2301.0,0.01342642]
[1769991384341,1.08605934,2301.9,2300.7,0.01342642]
[1769991384544,1.93588306,2301.8,2300.5,0.01342642]
[1769991384888,0.1024,2301.7,2300.5,0.01342642]
[1769991385165,0.1024,2301.7,2300.3,1.10021108]
[1769991385166,13.11893387,2301.7,2300.3,1.10021108]
[1769991385543,13.01653387,2301.7,2300.6,0.01342642]
[1769991385737,1.93588306,2301.8,2300.6,1.10008618]
[1769991386062,1.93588306,2301.8,2300.3,1.08678459]
[1769991386063,0.912,2301.7,2300.3,1.08678459]
[1769991386266,0.912,2301.7,2300.4,1.08673682]
[1769991386472,13.01653387,2301.5,2299.7,4.63887217]
[1769991386666,13.01653387,2301.5,2299.9,0.01342642]
[1769991386970,13.01653387,2301.2,2299.7,4.63887217]
[1769991387271,13.01653387,2301.0,2299.7,4.62544575]
[1769991387438,0.1024,2301.3,2300.0,1.08692533]
[1769991387771,0.912,2301.2,2299.9,1.08698529]
[1769991387965,1.08643692,2301.1,2299.9,1.08698529]
[1769991388136,0.63441846,2301.0,2299.8,0.01342642]
[1769991388363,0.01342642,2300.0,2299.4,2.97189924]
[1769991388539,0.86156213,2301.0,2299.3,4.34909911]
[1769991388743,2.5547735,2301.4,2300.1,0.01342642]
[1769991388944,4.34439458,2301.9,2300.7,0.01342642]
[1769991389173,5.25539458,2301.9,2300.7,0.01342642]
[1769991389372,5.25539458,2301.9,2300.3,0.01342642]
[1769991389578,0.1024,2301.7,2299.8,1.08702234]
[1769991389747,17.80002212,2301.9,2299.8,1.08702234]
[1769991389748,0.911,2301.6,2300.2,0.01342642]
[1769991389942,1.08624809,2301.5,2300.3,1.08681476]
[1769991390147,0.911,2301.8,2300.7,0.01342642]
[1769991390362,0.0011,2302.2,2301.5,0.01342642]
[1769991390573,1.31279111,2302.8,2301.9,0.01342642]
[1769991390774,1.08558773,2302.9,2300.4,0.01342642]
[1769991390978,0.63389162,2302.8,2301.8,0.01342642]
[1769991391470,1.0853992,2303.3,2302.1,0.01342642]
[1769991391679,0.911,2303.2,2302.0,0.01342642]
[1769991391857,1.0853992,2303.3,2301.8,0.01342642]
[1769991392055,0.911,2303.2,2302.1,0.01342642]
[1769991392455,7.33531683,2304.2,2303.4,0.01342642]
[1769991392600,1.08412112,2306.1,2304.4,0.01342642]
[1769991392896,1.08412112,2306.1,2304.7,0.01342642]
[1769991393265,14.11408141,2306.1,2303.8,0.01342642]
[1769991393475,0.1024,2306.0,2304.2,0.01342642]
[1769991393769,0.911,2305.9,2304.1,0.22688068]
[1769991393965,1.08422239,2305.8,2304.1,0.2403071]
[1769991394163,0.6332112,2305.7,2304.1,0.22688068]
[1769991394394,0.6332112,2305.7,2304.2,1.08495472]
[1769991394693,1.08409989,2306.1,2304.6,0.01342642]
[1769991395076,1.08409989,2306.1,2304.5,0.01342642]
[1769991395281,13.01653387,2306.8,2305.1,0.01342642]
[1769991395483,0.01342642,2308.1,2305.1,0.01342642]
[1769991395484,4.33231281,2308.3,2307.2,0.01342642]
[1769991395683,0.22389332,2308.2,2306.9,0.01342642]
[1769991395861,0.1085477,2308.4,2307.6,0.01342642]
[1769991396062,1.19155746,2308.4,2307.0,1.0836563]
[1769991396272,0.1085477,2308.4,2307.2,0.01342642]
[1769991396472,0.1085477,2308.4,2307.8,0.01342642]
[1769991396796,14.10752218,2309.0,2306.4,13.49864442]
[1769991397101,3.09783471,2308.9,2306.6,0.01342642]
[1769991397269,13.01653387,2308.9,2307.1,0.01342642]
[1769991397468,13.02996029,2308.9,2307.0,0.01342642]
[1769991397664,0.1024,2308.8,2307.2,1.08353018]
[1769991397869,1.09098831,2309.0,2307.6,1.08333839]
[1769991398099,1.09098831,2309.0,2307.7,0.01342642]
[1769991398293,0.54218675,2308.9,2307.6,1.09680157]
[1769991398568,0.1024,2308.6,2306.7,0.01342642]
[1769991398775,0.1024,2308.6,2305.9,0.01342642]
[1769991398776,13.56076703,2308.1,2305.9,0.01342642]
[1769991399074,14.80235995,2308.0,2306.4,1.08389783]
[1769991399309,14.80235995,2308.0,2306.8,1.08371019]
[1769991399508,0.54218675,2308.9,2307.1,0.01342642]
[1769991399509,13.44494061,2308.7,2307.1,0.01342642]
[1769991399713,13.44494061,2308.7,2307.2,0.01342642]
[1769991400007,13.44494061,2308.7,2307.1,1.09703237]
[1769991400008,1.08290738,2308.6,2307.1,1.09703237]
[1769991400309,1.08284503,2308.8,2307.1,1.08360291]
[1769991400478,0.02169168,2309.0,2308.1,0.01342642]
[1769991400479,0.00826526,2309.0,2308.1,0.01342642]
[1769991400682,0.09020693,2309.6,2308.5,0.01342642]
[1769991400903,4.34129312,2310.7,2308.5,0.01342642]
[1769991400904,13.44494061,2311.1,2309.4,0.01342642]
[1769991401116,4.32687517,2311.2,2309.1,0.01342642]
[1769991401117,15.22212219,2311.0,2309.1,0.01342642]
[1769991401426,15.22212219,2311.0,2309.3,0.01342642]
[1769991401577,15.22212219,2311.0,2310.0,0.01342642]
[1769991401578,1.77718158,2311.0,2310.0,0.01342642]
[1769991401777,0.01342642,2313.3,2310.6,0.01342642]
[1769991401778,14.52616195,2312.2,2310.6,0.01342642]
[1769991401971,14.52616195,2312.2,2310.2,0.01342642]
[1769991401972,13.44494061,2312.0,2310.2,0.01342642]
[1769991402201,13.44494061,2311.6,2309.2,0.91]
[1769991402479,2.25449406,2311.5,2309.7,0.01342642]
[1769991402696,15.69943467,2311.5,2309.7,0.01342642]
[1769991402897,15.69943467,2311.5,2309.3,0.01342642]
[1769991402898,0.1024,2311.0,2309.3,0.01342642]
[1769991403209,13.44494061,2310.0,2307.2,0.01342642]
[1769991403388,0.1024,2309.8,2308.1,0.01342642]
[1769991403576,2.2558367,2309.9,2308.5,0.01342642]
[1769991403781,13.44494061,2310.6,2309.1,0.01342642]
[1769991403976,13.44494061,2310.6,2308.9,0.01342642]
[1769991404184,1.08201687,2310.5,2309.0,0.01342642]
[1769991404420,4.3265005,2311.4,2309.8,0.01342642]
[1769991404581,2.42606786,2311.5,2310.0,0.01342642]
[1769991404788,2.42606786,2311.5,2309.6,0.01342642]
[1769991404789,14.55658261,2311.5,2309.6,0.01342642]
[1769991404986,14.55658261,2311.5,2309.9,0.01342642]
[1769991405212,13.45836703,2311.1,2308.9,1.09616431]
[1769991405394,13.44494061,2311.0,2309.5,0.01342642]
[1769991405582,1.111642,2311.5,2310.2,0.01342642]
[1769991405781,1.111642,2311.5,2310.0,0.01342642]
[1769991405782,0.54378371,2311.4,2310.0,0.01342642]
[1769991405990,12.40568156,2311.9,2310.0,0.01342642]
[1769991405991,4.32320262,2313.4,2311.6,0.01342642]
[1769991406189,4.32320262,2313.4,2311.4,0.01342642]
[1769991406190,12.40568156,2313.1,2311.4,0.01342642]
[1769991406507,13.06912275,2312.5,2310.5,0.01342642]
[1769991406704,13.06912275,2312.5,2310.3,0.01342642]
[1769991406705,0.1024,2312.1,2310.3,0.01342642]
[1769991407014,0.92242642,2312.4,2310.2,1.09555334]
[1769991407015,13.06912275,2311.9,2310.2,1.09555334]
[1769991407214,5.0,2312.3,2311.0,0.01342642]
[1769991407515,0.909,2312.2,2310.6,0.01342642]
[1769991407685,18.06912275,2312.5,2311.1,0.01342642]
[1769991407886,5.0,2312.3,2310.7,4.34095759]
[1769991408115,6.08119502,2312.3,2311.5,0.01342642]
[1769991408438,1.80691227,2312.4,2311.3,0.01342642]
[1769991408439,5.0,2312.2,2311.3,0.01342642]
[1769991408636,5.0,2312.2,2311.1,0.01342642]
[1769991408836,13.17152275,2312.0,2310.2,0.01342642]
[1769991409002,15.79427503,2311.9,2310.4,0.01342642]
[1769991409318,15.79427503,2311.9,2311.1,0.01342642]
[1769991409486,0.1024,2311.8,2310.1,0.01342642]
[1769991409685,5.1024,2311.8,2310.7,0.01342642]
[1769991409882,5.908,2311.7,2310.8,0.01342642]
[1769991410117,1.08154877,2311.5,2310.9,0.01342642]
[1769991410322,6.68255151,2311.6,2310.8,0.01342642]
[1769991410624,1.08127272,2312.1,2311.2,0.01342642]
[1769991410787,13.06912275,2312.0,2310.9,1.08182135]
[1769991410988,1.08127398,2312.1,2310.7,0.01342642]
[1769991411246,0.1024,2311.9,2310.3,0.01342642]
[1769991411444,0.54062194,2312.0,2311.0,0.01342642]
[1769991411633,1.08127398,2312.1,2311.3,0.01342642]
[1769991411833,1.08127398,2312.1,2311.0,1.09520919]
[1769991411834,0.908,2312.0,2311.0,0.01342642]
[1769991412144,1.08136165,2311.9,2310.7,1.09532367]
[1769991412355,1.08136165,2311.9,2310.9,0.01342642]
[1769991412649,0.908,2311.9,2311.2,0.01342642]
[1769991412849,0.908,2311.9,2310.9,0.01342642]
[1769991413151,0.1024,2311.8,2310.5,1.09541688]
[1769991413349,0.908,2311.9,2310.8,0.01342642]
[1769991413520,0.908,2311.9,2310.7,0.01342642]
[1769991413924,0.1024,2311.8,2310.2,0.01342642]
[1769991414114,0.1024,2311.6,2310.2,0.01342642]
[1769991414315,0.6636076,2311.6,2310.2,0.01342642]
[1769991414519,13.73273035,2311.6,2309.8,0.01342642]
[1769991414752,13.73273035,2311.6,2309.5,0.01342642]
[1769991414753,13.17152275,2311.1,2309.5,0.01342642]
[1769991414952,0.908,2311.0,2309.8,0.01342642]
[1769991415459,0.908,2311.0,2310.1,0.01342642]
[1769991415644,0.5612076,2311.6,2310.3,0.01342642]
[1769991415825,0.908,2311.5,2310.5,0.01342642]
[1769991416020,0.908,2311.5,2310.1,0.01342642]
[1769991416021,0.1024,2311.4,2308.9,0.01342642]
[1769991416259,1.08164236,2311.3,2309.8,1.08231961]
[1769991416429,1.08164236,2311.3,2309.8,1.09574603]
[1769991416750,0.54082118,2311.2,2310.1,0.01342642]
[1769991417046,0.908,2311.2,2310.1,0.01342642]
[1769991417465,0.908,2311.2,2310.0,0.01342642]
[1769991418231,0.908,2311.2,2309.6,4.34280558]
[1769991418232,0.02685284,2309.9,2307.9,1.08323584]
[1769991418460,0.908,2310.2,2308.0,13.08962781]
[1769991418754,0.908,2310.2,2308.2,13.08962781]
[1769991419167,0.908,2310.2,2308.3,0.01342642]
[1769991419324,0.01342642,2310.3,2308.1,1.43071279]
[1769991419622,0.92142642,2310.2,2308.2,0.01342642]
[1769991419817,0.908,2310.2,2308.3,0.01342642]
[1769991420019,0.908,2310.2,2308.2,0.01342642]
[1769991420247,4.32749598,2311.0,2308.6,13.08962781]
[1769991420554,0.908,2313.0,2310.3,0.2335703]
[1769991420770,0.908,2313.0,2310.2,13.08962781]
[1769991421060,13.97712275,2315.1,2313.7,0.02047571]
[1769991421225,1.07954054,2315.8,2313.7,0.02047571]
[1769991421422,14.51689302,2315.7,2313.7,0.02047571]
[1769991421725,13.06912275,2314.7,2311.5,12.40568156]
[1769991421921,13.97712275,2314.6,2311.5,12.40568156]
[1769991422160,1.08019357,2314.4,2311.8,0.2335703]
[1769991422355,1.98817197,2314.5,2312.3,13.08962781]
[1769991422526,1.08017197,2314.5,2311.9,0.2335703]
[1769991422721,0.907,2314.4,2312.2,13.32319811]
[1769991422932,0.907,2314.4,2313.4,0.01342642]
[1769991423132,0.907,2314.4,2313.2,0.01342642]
[1769991423354,0.907,2314.4,2311.6,4.33924724]
[1769991423531,0.907,2314.4,2313.1,0.01342642]
[1769991423733,0.907,2314.4,2313.0,0.01342642]
[1769991423937,1.07963378,2315.6,2314.0,0.01342642]
[1769991424147,1.07963378,2315.6,2313.1,0.01342642]
[1769991424148,0.01342642,2315.4,2313.1,0.01342642]
[1769991424350,0.1024,2315.3,2313.5,0.01342642]
[1769991424561,1.41890358,2315.4,2314.1,0.01342642]
[1769991424729,0.907,2315.4,2313.7,0.01342642]